bitfinex/quotes_SOLUSD_20250529
["timestamp","ask_amount","ask_price","bid_price","bid_amount"]
[1748480519131,36.58398893,173.56,173.49,6.4435]
[1748480519336,36.58398893,173.56,173.46,12.142]
[1748480519337,16.41805209,173.53,173.46,12.142]
[1748480519548,16.41805209,173.53,173.48,16.41805209]
[1748480519827,36.5886376,173.52,173.48,16.41805209]
[1748480520033,36.5886376,173.52,173.46,1.602]
[1748480520238,36.5886376,173.52,173.47,16.41805209]
[1748480520531,36.5886376,173.52,173.48,16.41805209]
[1748480520727,5.76302443,173.52,173.5,16.41805209]
[1748480521735,27.25805209,173.57,173.51,16.41805209]
[1748480521917,27.25805209,173.57,173.52,16.41805209]
[1748480522320,5.76169624,173.56,173.53,16.41805209]
[1748480522938,5.76169624,173.56,173.54,16.41805209]
[1748480523417,5.76169624,173.56,173.55,16.41805209]
[1748480523736,14.40058062,173.61,173.55,16.41805209]
[1748480523737,5.7607005,173.59,173.55,16.41805209]
[1748480524946,5.7607005,173.59,173.52,6.1336]
[1748480525129,5.7607005,173.59,173.55,16.41805209]
[1748480525718,16.41805209,173.58,173.53,16.41805209]
[1748480525918,20.16245175,173.59,173.54,16.41805209]
[1748480526145,16.41805209,173.58,173.54,16.41805209]
[1748480526439,20.16245175,173.59,173.54,16.41805209]
[1748480526628,20.16245175,173.59,173.55,16.41805209]
[1748480526941,5.7607005,173.59,173.57,16.41805209]
[1748480527237,5.7607005,173.59,173.53,1.6615]
[1748480527238,22.17875259,173.59,173.54,16.41805209]
[1748480527635,22.17875259,173.59,173.55,16.41805209]
[1748480527943,36.58050384,173.59,173.54,16.41805209]
[1748480528438,5.7607005,173.59,173.56,16.41805209]
[1748480529020,5.7607005,173.59,173.57,16.41805209]
[1748480529225,5.7607005,173.59,173.56,16.41805209]
[1748480529710,5.7607005,173.59,173.53,1.6615]
[1748480529711,5.7607005,173.59,173.57,16.41805209]
[1748480529934,5.76036866,173.6,173.56,16.41805209]
[1748480530122,22.17842075,173.6,173.56,16.41805209]
[1748480531037,22.17842075,173.6,173.55,16.41805209]
[1748480532655,5.76036866,173.6,173.55,16.41805209]
[1748480532937,22.17842075,173.6,173.55,16.41805209]
[1748480533367,16.41805209,173.59,173.53,1.6615]
[1748480533638,16.41805209,173.58,173.53,18.07955209]
[1748480534035,16.41805209,173.58,173.53,16.41805209]
[1748480534242,5.76136429,173.57,173.53,16.41805209]
[1748480535954,5.76136429,173.57,173.52,6.1336]
[1748480536241,5.76136429,173.57,173.54,16.41805209]
[1748480536550,36.57818111,173.61,173.56,16.41805209]
[1748480536718,16.41805209,173.6,173.56,16.41805209]
[1748480537422,16.41805209,173.6,173.52,6.1336]
[1748480537623,16.41805209,173.58,173.54,16.41805209]
[1748480538547,5.76136429,173.57,173.54,16.41805209]
[1748480540352,5.76136429,173.57,173.55,16.41805209]
[1748480540660,10.54,173.62,173.52,6.1336]
[1748480540661,5.76103237,173.58,173.52,6.1336]
[1748480540842,5.76103237,173.58,173.56,16.41805209]
[1748480541558,5.76103237,173.58,173.52,6.1336]
[1748480541856,5.76103237,173.58,173.55,16.41805209]
[1748480542064,5.76103237,173.58,173.56,16.41805209]
[1748480542861,65.33411822,173.65,173.52,6.1336]
[1748480542862,16.41805209,173.59,173.52,6.1336]
[1748480543048,16.41805209,173.59,173.54,16.41805209]
[1748480543354,16.41805209,173.59,173.52,6.1336]
[1748480543559,16.41805209,173.58,173.52,6.1336]
[1748480543856,16.41805209,173.58,173.53,16.41805209]
[1748480544828,5.76136429,173.57,173.53,16.41805209]
[1748480545031,5.76136429,173.57,173.54,16.41805209]
[1748480545272,5.76136429,173.57,173.55,16.41805209]
[1748480545564,5.76136429,173.57,173.56,16.41805209]
[1748480546138,5.7607005,173.59,173.56,16.41805209]
[1748480546352,5.7607005,173.59,173.55,16.41805209]
[1748480546749,16.41805209,173.58,173.52,6.1336]
[1748480546942,5.76136429,173.57,173.54,16.41805209]
[1748480547137,36.5828271,173.57,173.53,16.41805209]
[1748480547366,16.41805209,173.56,173.52,16.41805209]
[1748480547535,16.41805209,173.56,173.51,16.41805209]
[1748480548160,36.5828271,173.57,173.53,16.41805209]
[1748480548731,36.5828271,173.57,173.52,16.41805209]
[1748480549769,36.5828271,173.57,173.5,10.42]
[1748480549991,36.5828271,173.57,173.52,16.41805209]
[1748480551362,16.41805209,173.56,173.52,16.41805209]
[1748480551544,36.5828271,173.57,173.52,16.41805209]
[1748480552560,36.5828271,173.57,173.53,16.41805209]
[1748480552752,20.16477501,173.57,173.53,16.41805209]
[1748480553068,36.5828271,173.57,173.49,1.5937]
[1748480553257,16.41805209,173.56,173.52,16.41805209]
[1748480553967,5.76202823,173.55,173.52,16.41805209]
[1748480554870,5.76202823,173.55,173.49,44.71771596]
[1748480555168,5.76202823,173.55,173.53,16.41805209]
[1748480555575,22.18008032,173.55,173.49,1.5937]
[1748480555777,16.41805209,173.54,173.49,1.5937]
[1748480556070,5.76302443,173.52,173.48,16.41805209]
[1748480556875,5.76302443,173.52,173.45,8.1557]
[1748480556876,16.41805209,173.5,173.45,8.1557]
[1748480557055,16.41805209,173.5,173.45,18.04875209]
[1748480558163,5.76402098,173.49,173.45,18.04875209]
[1748480558343,5.76402098,173.49,173.46,16.41805209]
[1748480559167,5.76402098,173.49,173.45,1.6307]
[1748480559361,5.76402098,173.49,173.45,18.04875209]
[1748480559559,22.18207307,173.49,173.45,1.6307]
[1748480559763,16.41805209,173.47,173.42,10.42]
[1748480559955,16.41805209,173.45,173.4,16.41805209]
[1748480560264,5.76568265,173.44,173.4,16.41805209]
[1748480560479,5.76568265,173.44,173.41,16.41805209]
[1748480560649,5.76568265,173.44,173.38,6.3786]
[1748480560650,22.18373474,173.44,173.38,6.3786]
[1748480560852,22.18373474,173.44,173.39,16.41805209]
[1748480561057,22.18373474,173.44,173.38,6.3786]
[1748480561257,16.41805209,173.42,173.38,6.3786]
[1748480561455,16.41805209,173.41,173.37,16.41805209]
[1748480561957,16.41805209,173.42,173.37,16.41805209]
[1748480562145,5.76668012,173.41,173.37,16.41805209]
[1748480562748,22.18473221,173.41,173.36,17.93565209]
[1748480562969,16.41805209,173.4,173.36,17.93565209]
[1748480563470,16.41805209,173.4,173.36,16.41805209]
[1748480563646,16.41805209,173.4,173.34,16.5803]
[1748480563969,5.76668012,173.41,173.38,16.41805209]
[1748480564174,26.0,173.43,173.35,24.41832494]
[1748480564175,16.41805209,173.43,173.35,24.41832494]
[1748480564350,16.41805209,173.43,173.38,16.41805209]
[1748480564542,26.0,173.46,173.39,16.41805209]
[1748480564861,16.41805209,173.43,173.39,16.41805209]
[1748480565246,22.18425921,173.43,173.39,16.41805209]
[1748480565557,22.18377979,173.44,173.39,16.41805209]
[1748480565754,22.18345389,173.45,173.4,16.41805209]
[1748480565971,16.41805209,173.44,173.37,5.76793301]
[1748480566287,16.41805209,173.44,173.39,16.41805209]
[1748480566649,16.41805209,173.44,173.35,24.56039267]
[1748480566843,16.41805209,173.43,173.35,24.56039267]
[1748480567083,5.7654018,173.45,173.35,24.56039267]
[1748480567084,16.41805209,173.42,173.38,16.41805209]
[1748480567248,5.76701268,173.4,173.36,16.41805209]
[1748480567448,5.76701268,173.4,173.34,42.5803]
[1748480567747,5.76701268,173.4,173.37,16.41805209]
[1748480568068,5.76634759,173.42,173.37,16.41805209]
[1748480568274,22.18439968,173.42,173.37,16.41805209]
[1748480570379,14.41541803,173.43,173.37,16.41805209]
[1748480570681,16.41805209,173.42,173.37,16.41805209]
[1748480571055,14.41541803,173.43,173.37,16.41805209]
[1748480571259,16.41805209,173.42,173.37,16.41805209]
[1748480571555,5.76535024,173.45,173.38,16.41805209]
[1748480571756,5.76535024,173.45,173.34,37.92927195]
[1748480571757,20.17872585,173.45,173.34,37.92927195]
[1748480571966,16.41805209,173.4,173.35,16.41805209]
[1748480572364,5.76767793,173.38,173.32,1.6304]
[1748480572679,5.76767793,173.38,173.34,16.41805209]
[1748480572881,36.60492485,173.38,173.33,16.41805209]
[1748480573373,36.60492485,173.38,173.34,16.41805209]
[1748480573958,36.60492485,173.38,173.32,1.6304]
[1748480574160,36.60492485,173.38,173.34,16.41805209]
[1748480574777,16.41805209,173.37,173.32,18.04845209]
[1748480575079,20.18687276,173.38,173.32,1.6304]
[1748480575278,36.60492485,173.38,173.32,1.6304]
[1748480575474,36.60492485,173.38,173.33,16.41805209]
[1748480576463,22.18573002,173.38,173.33,16.41805209]
[1748480576663,16.41805209,173.37,173.33,16.41805209]
[1748480577380,16.41805209,173.37,173.32,18.04845209]
[1748480577790,14.41602311,173.42,173.35,16.41805209]
[1748480577986,16.41805209,173.4,173.36,16.41805209]
[1748480578682,14.41602311,173.42,173.35,16.41805209]
[1748480578683,22.18539738,173.39,173.35,16.41805209]
[1748480579062,5.76734529,173.39,173.35,16.41805209]
[1748480579757,22.18539738,173.39,173.35,16.41805209]
[1748480580296,5.76710543,173.4,173.36,16.41805209]
[1748480580590,16.41805209,173.41,173.37,16.41805209]
[1748480580783,22.18479191,173.41,173.36,16.41805209]
[1748480581169,16.41805209,173.4,173.35,16.41805209]
[1748480581691,16.41805209,173.38,173.33,16.41805209]
[1748480582681,20.18344012,173.41,173.32,1.6304]
[1748480582682,16.41805209,173.39,173.34,16.41805209]
[1748480582992,5.76740397,173.39,173.35,16.41805209]
[1748480583203,5.76704663,173.4,173.37,16.41805209]
[1748480583370,22.18466765,173.42,173.38,16.41805209]
[1748480583566,5.76661556,173.42,173.39,16.41805209]
[1748480583782,5.76661556,173.42,173.34,16.41805209]
[1748480583783,5.76607583,173.43,173.41,16.41805209]
[1748480583979,24.83229071,173.47,173.36,63.1]
[1748480583980,5.76501787,173.46,173.42,16.41805209]
[1748480584174,5.76501787,173.46,173.39,27.5594]
[1748480584175,5.76501787,173.46,173.44,16.41805209]
[1748480584495,5.76443563,173.48,173.45,16.41805209]
[1748480585595,5.76443563,173.48,173.44,16.41805209]
[1748480585762,5.76443563,173.48,173.46,16.41805209]
[1748480585964,5.76443563,173.48,173.42,37.12]
[1748480585965,5.76443563,173.48,173.45,16.41805209]
[1748480586192,5.76443563,173.48,173.44,16.41805209]
[1748480586493,16.41805209,173.47,173.42,37.12]
[1748480586790,5.76501787,173.46,173.4,10.3]
[1748480586987,5.76501787,173.46,173.42,16.41805209]
[1748480587768,22.18306996,173.46,173.42,16.41805209]
[1748480588088,5.76501787,173.46,173.42,16.41805209]
[1748480588663,22.18306996,173.46,173.42,16.41805209]
[1748480589179,22.18306996,173.46,173.39,17.97745209]
[1748480589180,16.41805209,173.43,173.39,17.97745209]
[1748480589379,16.41805209,173.43,173.35,16.5752]
[1748480589380,16.41805209,173.42,173.38,16.41805209]
[1748480589893,16.41805209,173.42,173.35,55.2709]
[1748480590088,16.41805209,173.42,173.38,16.41805209]
[1748480590290,16.41805209,173.42,173.37,16.41805209]
[1748480590671,16.41805209,173.41,173.36,16.41805209]
[1748480591070,5.76701268,173.4,173.36,16.41805209]
[1748480591573,22.18506477,173.4,173.36,16.41805209]
[1748480592078,16.41805209,173.39,173.35,34.58895209]
[1748480592689,16.41805209,173.39,173.35,1.5957]
[1748480592888,16.41805209,173.39,173.32,26.0]
[1748480593088,5.76767793,173.38,173.34,16.41805209]
[1748480594370,5.76634759,173.42,173.35,16.41805209]
[1748480594707,16.41805209,173.4,173.35,16.41805209]
[1748480594881,16.41805209,173.39,173.34,16.41805209]
[1748480595187,5.76767793,173.38,173.33,37.04]
[1748480595387,16.41805209,173.37,173.33,16.41805209]
[1748480595583,22.18573002,173.38,173.33,16.41805209]
[1748480596187,22.18573002,173.38,173.34,16.41805209]
[1748480597300,5.76767793,173.38,173.35,16.41805209]
[1748480597475,22.18439968,173.42,173.37,16.41805209]
[1748480597974,16.41805209,173.41,173.33,0.14216157]
[1748480598292,16.41805209,173.41,173.36,16.41805209]
[1748480599427,5.76701268,173.4,173.36,16.41805209]
[1748480600401,20.18454439,173.4,173.32,18.64964886]
[1748480600638,26.0,173.37,173.31,8.1965]
[1748480600933,26.0,173.37,173.31,1.5966]
[1748480601134,26.0,173.36,173.31,1.5966]
[1748480601297,22.18672817,173.35,173.31,1.5966]
[1748480601496,16.41805209,173.33,173.31,1.5966]
[1748480601700,16.41805209,173.33,173.27,7.5998]
[1748480602005,16.41805209,173.32,173.27,24.01785209]
[1748480602607,16.41805209,173.32,173.28,16.41805209]
[1748480603598,16.41805209,173.29,173.27,7.5998]
[1748480603800,16.41805209,173.29,173.23,101.62964886]
[1748480603801,16.41805209,173.28,173.23,8.0531]
[1748480604040,16.41805209,173.27,173.23,8.0531]
[1748480604835,16.41805209,173.27,173.23,24.47115209]
[1748480604996,16.41805209,173.27,173.23,8.0531]
[1748480605198,16.41805209,173.27,173.23,24.47115209]
[1748480605533,16.41805209,173.29,173.24,16.41805209]
[1748480605820,16.41805209,173.29,173.25,16.41805209]
[1748480606203,16.41805209,173.26,173.16,1.5575]
[1748480606409,16.41805209,173.25,173.2,16.41805209]
[1748480606604,5.76934171,173.33,173.24,16.41805209]
[1748480606805,5.76934171,173.33,173.29,16.41805209]
[1748480607316,22.1873938,173.33,173.28,16.41805209]
[1748480607497,16.41805209,173.32,173.27,16.41805209]
[1748480607903,16.41805209,173.3,173.26,6.248]
[1748480608094,16.41805209,173.3,173.26,16.41805209]
[1748480608301,20.19502625,173.31,173.24,16.41805209]
[1748480608512,16.41805209,173.29,173.22,42.708]
[1748480608706,16.41805209,173.3,173.25,16.41805209]
[1748480609811,5.77067343,173.29,173.26,16.41805209]
[1748480610215,22.18872552,173.29,173.25,16.41805209]
[1748480611111,16.41805209,173.28,173.23,16.41805209]
[1748480611302,22.18872552,173.29,173.24,16.41805209]
[1748480611503,5.77067343,173.29,173.25,16.41805209]
[1748480611704,5.77067343,173.29,173.27,16.41805209]
[1748480611900,22.18872552,173.29,173.22,16.708]
[1748480612128,5.77067343,173.29,173.24,16.41805209]
[1748480612314,22.18872552,173.29,173.25,16.41805209]
[1748480613032,22.18872552,173.29,173.22,16.708]
[1748480613323,16.41805209,173.28,173.24,16.41805209]
[1748480613627,5.77167263,173.26,173.22,33.12605209]
[1748480613802,22.18972472,173.26,173.22,33.12605209]
[1748480614001,22.18972472,173.26,173.21,17.97555209]
[1748480614201,22.18972472,173.26,173.22,16.41805209]
[1748480614415,5.77167263,173.26,173.23,16.41805209]
[1748480614633,22.18972472,173.26,173.22,16.41805209]
[1748480615212,5.77167263,173.26,173.22,16.41805209]
[1748480615709,22.18972472,173.26,173.22,16.41805209]
[1748480615909,5.77167263,173.26,173.22,16.41805209]
[1748480616224,5.77167263,173.26,173.23,16.41805209]
[1748480616413,5.77167263,173.26,173.22,16.41805209]
[1748480617321,22.18972472,173.26,173.21,17.97555209]
[1748480619232,5.77167263,173.26,173.22,16.41805209]
[1748480619431,5.77167263,173.26,173.23,16.41805209]
[1748480620637,5.77167263,173.26,173.22,16.41805209]
[1748480620820,22.18972472,173.26,173.22,16.41805209]
[1748480621017,16.41805209,173.23,173.19,26.0]
[1748480621410,5.77300542,173.22,173.19,26.0]
[1748480621820,5.77300542,173.22,173.19,16.41805209]
[1748480622020,5.77200577,173.25,173.2,16.41805209]
[1748480622330,22.19005786,173.25,173.2,16.41805209]
[1748480622634,16.41805209,173.23,173.19,16.41805209]
[1748480623542,5.77300542,173.22,173.19,16.41805209]
[1748480625064,5.77300542,173.22,173.18,6.1013]
[1748480625241,5.77300542,173.22,173.19,16.41805209]
[1748480625814,5.77300542,173.22,173.17,17.92735209]
[1748480625815,16.41805209,173.22,173.17,17.92735209]
[1748480626027,22.19072425,173.23,173.18,16.41805209]
[1748480626543,16.41805209,173.22,173.17,17.92735209]
[1748480627040,16.41805209,173.22,173.17,16.41805209]
[1748480627513,22.19072425,173.23,173.18,16.41805209]
[1748480628135,5.77267216,173.23,173.18,16.41805209]
[1748480628445,5.77267216,173.23,173.2,16.41805209]
[1748480629240,5.77267216,173.23,173.17,5.77454738]
[1748480629241,22.18939161,173.27,173.22,16.41805209]
[1748480629419,22.18939161,173.27,173.23,16.41805209]
[1748480630760,22.18939161,173.27,173.19,31.77374762]
[1748480630916,5.77133952,173.27,173.22,16.41805209]
[1748480631120,22.18939161,173.27,173.22,16.41805209]
[1748480632446,5.77200577,173.25,173.21,16.41805209]
[1748480632942,5.77200577,173.25,173.19,31.77374762]
[1748480633121,5.77200577,173.25,173.19,42.41805209]
[1748480633319,16.41805209,173.24,173.19,42.41805209]
[1748480633542,22.19005786,173.25,173.2,16.41805209]
[1748480634651,16.41805209,173.24,173.2,16.41805209]
[1748480635029,16.41805209,173.23,173.19,16.41805209]
[1748480635821,16.41805209,173.23,173.16,31.77493215]
[1748480636150,16.41805209,173.23,173.19,16.41805209]
[1748480636759,14.42863255,173.27,173.16,31.77493215]
[1748480636927,16.41805209,173.24,173.19,16.41805209]
[1748480637645,14.42863255,173.27,173.19,16.41805209]
[1748480637825,5.77267216,173.23,173.19,16.41805209]
[1748480639348,22.18972472,173.26,173.21,16.41805209]
[1748480639839,5.77167263,173.26,173.22,16.41805209]
[1748480640079,22.18972472,173.26,173.18,24.70831083]
[1748480640253,22.18972472,173.26,173.21,16.41805209]
[1748480641260,16.41805209,173.26,173.21,16.41805209]
[1748480641943,5.77100646,173.28,173.25,16.41805209]
[1748480642129,5.77100646,173.28,173.24,16.41805209]
[1748480642931,22.18905855,173.28,173.24,16.41805209]
[1748480643233,5.77069603,173.29,173.26,16.41805209]
[1748480643622,5.77069603,173.29,173.25,16.41805209]
[1748480644327,22.18874812,173.29,173.22,12.08310143]
[1748480644543,22.18874812,173.29,173.22,6.3102]
[1748480644544,5.77069603,173.29,173.22,6.3102]
[1748480644751,22.18874812,173.29,173.24,16.41805209]
[1748480644951,5.77044824,173.3,173.25,16.41805209]
[1748480645135,16.41805209,173.3,173.23,0.14216157]
[1748480645339,16.41805209,173.29,173.24,16.41805209]
[1748480645850,16.41805209,173.3,173.25,16.41805209]
[1748480646053,16.41805209,173.27,173.22,6.3102]
[1748480646231,16.41805209,173.27,173.22,22.72825209]
[1748480646669,16.41805209,173.27,173.23,16.41805209]
[1748480647135,22.18972472,173.26,173.21,1.5865]
[1748480647456,22.18972472,173.26,173.21,18.00455209]
[1748480647830,22.18972472,173.26,173.22,16.41805209]
[1748480648330,16.41805209,173.24,173.19,42.41805209]
[1748480648563,5.77167263,173.26,173.2,16.41805209]
[1748480648855,5.77167263,173.26,173.22,16.41805209]
[1748480649074,22.18972472,173.26,173.21,16.41805209]
[1748480649237,16.41805209,173.25,173.21,16.41805209]
[1748480650337,16.41805209,173.25,173.2,16.41805209]
[1748480650523,16.41805209,173.25,173.18,6.5388]
[1748480650731,16.41805209,173.25,173.2,16.41805209]
[1748480650930,16.41805209,173.19,173.15,21.54990976]
[1748480651203,16.41805209,173.19,173.03,28.01016685]
[1748480651204,7.23171173,173.07,173.03,28.01016685]
[1748480651399,26.0,173.13,173.03,28.01016685]
[1748480651572,26.0,172.98,172.86,105.71071244]
[1748480651864,26.0,172.98,172.86,88.37418144]
[1748480651865,16.41805209,172.87,172.86,88.37418144]
[1748480652235,42.41805209,172.87,172.86,88.37418144]
[1748480652435,26.0,172.87,172.86,15.86005394]
[1748480652654,42.41805209,172.87,172.86,2.67434441]
[1748480652854,58.83610418,172.87,172.81,2.67434441]
[1748480653067,32.83610418,172.82,172.81,2.67434441]
[1748480653269,32.83610418,172.82,172.67,5.79123235]
[1748480653270,26.0,172.79,172.67,22.20928444]
[1748480653452,26.0,172.79,172.67,5.79123235]
[1748480653756,26.0,172.79,172.64,54.28]
[1748480653757,16.41805209,172.73,172.65,5.79187651]
[1748480653960,24.57458604,172.71,172.64,12.74]
[1748480654270,26.0,172.77,172.64,12.74]
[1748480654434,24.57458604,172.7,172.64,12.74]
[1748480654633,41.56,172.76,172.66,24.57458604]
[1748480654860,2.15129748,172.75,172.68,24.57458604]
[1748480655112,24.57458604,172.75,172.69,24.57458604]
[1748480655358,5.78885078,172.75,172.64,12.74]
[1748480655565,24.57458604,172.73,172.64,12.74]
[1748480655866,5.78885078,172.75,172.66,24.57458604]
[1748480656049,24.57458604,172.75,172.72,26.0]
[1748480656248,24.57458604,172.78,172.72,50.57458604]
[1748480656449,24.57458604,172.76,172.73,26.0]
[1748480656848,5.78737195,172.79,172.73,24.57458604]
[1748480657037,18.64964886,172.82,172.69,0.14216157]
[1748480657038,5.7870171,172.81,172.72,26.0]
[1748480657360,5.7870171,172.81,172.77,26.0]
[1748480657550,5.7870171,172.81,172.78,0.14216157]
[1748480657735,30.36087662,172.83,172.77,50.57458604]
[1748480657932,30.36087662,172.83,172.78,0.14216157]
[1748480658163,5.78540314,172.85,172.78,0.14216157]
[1748480658464,24.57458604,172.83,172.78,0.14216157]
[1748480658644,24.57458604,172.82,172.73,18.64964886]
[1748480658849,24.57458604,172.82,172.77,0.14216157]
[1748480659054,24.57458604,172.83,172.77,24.71674761]
[1748480659260,24.57458604,172.82,172.77,24.57458604]
[1748480659456,24.57458604,172.81,172.76,0.14216157]
[1748480659651,24.57458604,172.79,172.72,13.24]
[1748480659852,24.57458604,172.79,172.76,26.0]
[1748480660171,18.64964886,172.85,172.77,26.0]
[1748480660340,24.57458604,172.81,172.76,26.14216157]
[1748480660541,24.57458604,172.81,172.76,50.71674761]
[1748480660746,24.57458604,172.82,172.78,0.14216157]
[1748480660955,18.64964886,172.88,172.78,0.14216157]
[1748480661156,24.57458604,172.82,172.78,0.14216157]
[1748480661573,18.64964886,172.88,172.77,26.0]
[1748480661743,24.57458604,172.83,172.75,31.78867442]
[1748480661949,24.57458604,172.83,172.77,24.57458604]
[1748480662266,18.64964886,172.88,172.8,24.57458604]
[1748480662450,24.57458604,172.86,172.8,24.57458604]
[1748480662949,24.57458604,172.85,172.72,31.88964886]
[1748480663284,24.57458604,172.86,172.79,24.57458604]
[1748480663460,24.57458604,172.84,172.72,13.24]
[1748480663667,24.57458604,172.83,172.77,24.57458604]
[1748480663960,24.57458604,172.82,172.76,24.57458604]
[1748480664146,24.57458604,172.82,172.77,24.57458604]
[1748480664350,0.28432314,172.87,172.77,24.57458604]
[1748480664546,24.57458604,172.83,172.78,24.57458604]
[1748480665467,24.57458604,172.86,172.81,24.57458604]
[1748480665667,18.64964886,172.88,172.8,26.0]
[1748480665852,43.2242349,172.91,172.86,24.57458604]
[1748480666045,24.57458604,172.9,172.85,24.57458604]
[1748480666265,24.57458604,172.89,172.84,24.57458604]
[1748480666671,24.57458604,172.89,172.84,30.36026999]
[1748480667178,24.57458604,172.89,172.81,5.78670215]
[1748480667358,24.57458604,172.89,172.84,24.57458604]
[1748480667744,24.57458604,172.89,172.81,5.78670215]
[1748480667944,0.14216157,172.92,172.84,24.57458604]
[1748480668256,13.26,172.96,172.9,24.57458604]
[1748480668459,18.64964886,172.95,172.9,24.57458604]
[1748480668678,11.5642,173.09,172.92,26.0]
[1748480668976,24.57458604,173.01,172.93,26.0]
[1748480669276,24.57458604,173.0,172.9,26.0]
[1748480669443,24.57458604,172.95,172.85,14.46277209]
[1748480669772,24.57458604,172.92,172.88,26.0]
[1748480669980,24.57458604,172.93,172.88,26.0]
[1748480670150,24.57458604,172.93,172.88,50.57458604]
[1748480670356,24.57458604,172.94,172.89,24.57458604]
[1748480670551,24.57458604,172.94,172.89,30.35849299]
[1748480670751,24.57458604,172.94,172.85,26.0]
[1748480670976,67.57458604,173.0,172.87,50.57458604]
[1748480670977,18.64964886,172.95,172.87,50.57458604]
[1748480671157,24.57458604,172.92,172.87,50.57458604]
[1748480671351,24.57458604,172.92,172.87,26.0]
[1748480671550,0.28432314,172.96,172.87,26.0]
[1748480671860,24.57458604,172.92,172.87,26.0]
[1748480672060,0.28432314,172.96,172.87,50.57458604]
[1748480672264,24.57458604,172.92,172.87,50.57458604]
[1748480672580,24.57458604,172.92,172.84,5.78569775]
[1748480672581,0.28432314,172.96,172.88,24.57458604]
[1748480672767,24.57458604,172.93,172.88,24.57458604]
[1748480673177,24.57458604,172.92,172.87,24.57458604]
[1748480673557,24.57458604,172.93,172.88,24.57458604]
[1748480673756,44.933972,172.97,172.89,24.57458604]
[1748480673963,24.57458604,172.94,172.89,24.57458604]
[1748480674164,0.28432314,172.97,172.89,24.57458604]
[1748480674378,24.57458604,172.94,172.89,24.57458604]
[1748480674667,24.57458604,172.93,172.88,24.57458604]
[1748480675171,24.57458604,172.94,172.89,24.57458604]
[1748480675367,24.57458604,172.94,172.85,26.0]
[1748480675368,24.57458604,172.93,172.87,24.57458604]
[1748480675881,43.2242349,172.93,172.88,24.57458604]
[1748480676087,18.64964886,172.93,172.88,24.57458604]
[1748480676454,24.57458604,172.94,172.89,24.57458604]
[1748480676660,18.64964886,172.94,172.9,24.57458604]
[1748480677161,24.57458604,172.97,172.92,24.57458604]
[1748480677457,24.57458604,172.95,172.91,24.57458604]
[1748480677662,24.57458604,172.95,172.9,30.35819094]
[1748480677870,43.2242349,172.96,172.91,24.57458604]
[1748480678262,24.57458604,172.95,172.9,30.35819094]
[1748480678871,24.57458604,172.95,172.9,24.57458604]
[1748480679271,18.64964886,172.94,172.87,5.78439404]
[1748480679487,43.2242349,172.94,172.89,50.57458604]
[1748480679661,24.57458604,172.93,172.89,26.0]
[1748480679863,24.57458604,172.94,172.89,50.57458604]
[1748480680599,24.57458604,172.95,172.89,50.57458604]
[1748480681101,24.57458604,172.95,172.89,26.0]
[1748480681305,24.57458604,172.95,172.89,50.57458604]
[1748480681512,0.28432314,172.97,172.89,50.57458604]
[1748480681685,24.57458604,172.95,172.89,56.35851327]
[1748480682000,24.57458604,172.95,172.9,24.57458604]
[1748480682306,24.57458604,172.95,172.89,56.35851327]
[1748480682709,0.28432314,172.97,172.91,24.57458604]
[1748480682883,24.57458604,172.96,172.91,24.57458604]
[1748480683077,24.57458604,172.95,172.9,24.57458604]
[1748480683478,18.933972,172.99,172.9,24.57458604]
[1748480683678,24.57458604,172.96,172.9,24.57458604]
[1748480683895,24.57458604,172.96,172.9,30.35820784]
[1748480684195,24.57458604,172.96,172.91,24.57458604]
[1748480685081,24.57458604,172.97,172.91,24.57458604]
[1748480685516,24.57458604,172.99,172.94,24.57458604]
[1748480685697,18.64964886,172.99,172.95,24.57458604]
[1748480686084,24.57458604,172.99,172.95,24.57458604]
[1748480686395,24.57458604,172.99,172.93,5.78254075]
[1748480686396,24.57458604,172.99,172.94,24.57458604]
[1748480686591,24.57458604,172.97,172.9,5.78368999]
[1748480686790,24.57458604,172.97,172.92,24.57458604]
[1748480686977,0.28432314,172.98,172.92,24.57458604]
[1748480687180,24.57458604,172.98,172.93,24.57458604]
[1748480687603,24.57458604,172.99,172.93,24.57458604]
[1748480687802,24.71674761,173.0,172.94,24.57458604]
[1748480688019,24.57458604,173.01,172.96,24.57458604]
[1748480688782,24.57458604,173.01,172.92,26.0]
[1748480688783,18.64964886,172.99,172.92,31.7829894]
[1748480689007,24.57458604,172.98,172.93,24.57458604]
[1748480689705,43.2242349,172.99,172.94,24.57458604]
[1748480689910,18.64964886,172.99,172.95,24.57458604]
[1748480691989,18.64964886,172.99,172.95,30.3565777]
[1748480692310,2.11883337,172.98,172.95,30.3565777]
[1748480692515,18.64964886,172.99,172.95,30.3565777]
[1748480692699,2.11883352,172.98,172.96,24.57458604]
[1748480692897,24.57458604,173.01,172.96,4.50803378]
[1748480693300,2.11877795,173.0,172.96,4.50803378]
[1748480693493,24.57458604,173.01,172.96,4.50803378]
[1748480693692,24.57458604,173.01,172.96,10.28965586]